fUST/lending_fUST_20250831
["ID","MTS","AMOUNT","RATE_DAILY","PERIOD"]
[382363891,1756587034882,-480.0,0.00019178,2]
[382363893,1756587034892,-960.77,0.00019178,2]
[382363894,1756587034903,-480.0,0.00019178,2]
[382363895,1756587034913,-880.92,0.00019178,2]
[382363896,1756587034924,-595.191698,0.00019178,2]
[382363899,1756587035116,-1295.71,0.00019178,2]
[382363900,1756587035126,-480.0,0.00019178,2]
[382363901,1756587035136,-553.4,0.00019178,2]
[382363902,1756587035145,-480.0,0.00019178,2]
[382363904,1756587035154,-480.0,0.00019178,2]
[382363905,1756587035165,-480.0,0.00019178,2]
[382363906,1756587035175,-599.83,0.00019178,2]
[382363907,1756587035184,-759.52,0.00019178,2]
[382363908,1756587035194,-1249.43,0.00019178,2]
[382363909,1756587035204,-300.0,0.00019178,2]
[382363910,1756587035213,-526.27,0.00019178,2]
[382363911,1756587035223,-480.0,0.00019178,2]
[382363912,1756587035232,-153.298943,0.00019178,2]
[382363913,1756587035242,-1597.81,0.00019178,2]
[382363915,1756587035252,-480.0,0.00019178,2]
[382363916,1756587035261,-801.3,0.00019178,2]
[382363917,1756587035270,-480.0,0.00019178,2]
[382363918,1756587035280,-514.62,0.00019178,2]
[382363919,1756587035289,-862.06,0.00019178,2]
[382363920,1756587035298,-480.0,0.00019178,2]
[382363921,1756587035308,-1434.59,0.00019178,2]
[382363922,1756587035317,-480.0,0.00019178,2]
[382363923,1756587035327,-898.87,0.00019178,2]
[382363925,1756587035336,-480.0,0.00019178,2]
[382363926,1756587035346,-940.97,0.00019178,2]
[382363927,1756587035356,-480.0,0.00019178,2]
[382363928,1756587035367,-480.0,0.00019178,2]
[382363929,1756587035378,-480.0,0.00019178,2]
[382363930,1756587035388,-480.0,0.00019178,2]
[382363931,1756587035398,-480.0,0.00019178,2]
[382363932,1756587035408,-1943.64,0.00019178,2]
[382363933,1756587035418,-1106.3,0.00019178,2]
[382363935,1756587035431,-710.24,0.00019178,2]
[382363936,1756587035441,-2137.31,0.00019178,2]
[382363937,1756587035452,-1219.32,0.00019178,2]
[382363938,1756587035463,-480.0,0.00019178,2]
[382363939,1756587035474,-405.78991659,0.00019178,2]
[382363940,1756587035484,-480.0,0.00019178,2]
[382363941,1756587035494,-480.0,0.00019178,2]
[382363942,1756587035505,-859.18,0.00019178,2]
[382363943,1756587035515,-480.0,0.00019178,2]
[382363944,1756587035525,-1700.37,0.00019178,2]
[382363946,1756587035534,-2153.84,0.00019178,2]
[382363947,1756587035544,-480.0,0.00019178,2]
[382363948,1756587035554,-480.0,0.00019178,2]
[382363949,1756587035564,-1640.07,0.00019178,2]
[382363950,1756587035573,-591.9,0.00019178,2]
[382363951,1756587035583,-480.0,0.00019178,2]
[382363952,1756587035594,-1830.89,0.00019178,2]
[382363953,1756587035604,-482.20110595,0.00019178,2]
[382363954,1756587035613,-480.0,0.00019178,2]
[382363956,1756587035623,-788.41,0.00019178,2]
[382363957,1756587035632,-480.0,0.00019178,2]
[382363958,1756587035642,-547.45,0.00019178,2]
[382363959,1756587035652,-794.39,0.00019178,2]
[382363960,1756587035661,-776.47,0.00019178,2]
[382363961,1756587035674,-1611.55,0.00019178,2]
[382363962,1756587035683,-480.0,0.00019178,2]
[382363963,1756587035693,-520.20843973,0.00019178,2]
[382363964,1756587035703,-480.0,0.00019178,2]
[382363966,1756587035712,-480.0,0.00019178,2]
[382363967,1756587035721,-1084.39,0.00019178,2]
[382363968,1756587035733,-821.96,0.00019178,2]
[382363969,1756587035743,-480.0,0.00019178,2]
[382363970,1756587035753,-895.84,0.00019178,2]
[382363971,1756587035763,-480.0,0.00019178,2]
[382363972,1756587035773,-746.95,0.00019178,2]
[382363973,1756587035783,-480.0,0.00019178,2]
[382363974,1756587035793,-1826.29,0.00019178,2]
[382363976,1756587035804,-480.0,0.00019178,2]
[382363977,1756587035814,-480.0,0.00019178,2]
[382363978,1756587035823,-766.98,0.00019178,2]
[382363979,1756587035833,-480.0,0.00019178,2]
[382363980,1756587035842,-480.0,0.00019178,2]
[382363981,1756587035852,-1076.82,0.00019178,2]
[382363982,1756587035861,-909.57,0.00019178,2]
[382363983,1756587035872,-480.0,0.00019178,2]
[382363984,1756587035882,-480.0,0.00019178,2]
[382363986,1756587035891,-1595.48,0.00019178,2]
[382363987,1756587035902,-1000.0,0.00019178,2]
[382363988,1756587035911,-480.0,0.00019178,2]
[382363989,1756587035920,-808.81,0.00019178,2]
[382363990,1756587035931,-515.87,0.00019178,2]
[382363991,1756587035940,-480.0,0.00019178,2]
[382363992,1756587035950,-723.22,0.00019178,2]
[382363993,1756587035959,-480.0,0.00019178,2]
[382363994,1756587035969,-480.0,0.00019178,2]
[382363996,1756587035979,-480.0,0.00019178,2]
[382363997,1756587035989,-581.06,0.00019178,2]
[382363998,1756587035999,-626.38230486,0.00019178,2]
[382363999,1756587036009,-480.0,0.00019178,2]
[382364000,1756587036019,-1821.88,0.00019178,2]
[382364001,1756587036032,-769.13,0.00019178,2]
[382364002,1756587036043,-480.0,0.00019178,2]
[382364003,1756587036052,-573.47,0.00019178,2]
[382364004,1756587036062,-2007.49,0.00019178,2]
[382364006,1756587036071,-480.0,0.00019178,2]
[382364007,1756587036081,-480.0,0.00019178,2]
[382364008,1756587036091,-543.05,0.00019178,2]
[382364009,1756587036101,-480.0,0.00019178,2]
[382364010,1756587036111,-538.67,0.00019178,2]
[382364011,1756587036120,-480.0,0.00019178,2]
[382364012,1756587036130,-480.0,0.00019178,2]
[382364013,1756587036140,-480.0,0.00019178,2]
[382364015,1756587036151,-2415.51,0.00019178,2]
[382364016,1756587036161,-1246.09,0.00019178,2]
[382364017,1756587036172,-643.07,0.00019178,2]
[382364018,1756587036181,-480.0,0.00019178,2]
[382364019,1756587036190,-480.0,0.00019178,2]
[382364020,1756587036200,-736.91,0.00019178,2]
[382364021,1756587036210,-631.25,0.00019178,2]
[382364022,1756587036219,-480.0,0.00019178,2]
[382364023,1756587036228,-1179.53,0.00019178,2]
[382364024,1756587036238,-480.0,0.00019178,2]
[382364026,1756587036248,-480.0,0.00019178,2]
[382364027,1756587036258,-687.64,0.00019178,2]
[382364028,1756587036268,-1242.18,0.00019178,2]
[382364029,1756587036278,-933.85,0.00019178,2]
[382364030,1756587036287,-481.4890296,0.00019178,2]
[382364031,1756587036297,-480.0,0.00019178,2]
[382364032,1756587036308,-827.76,0.00019178,2]
[382364033,1756587036318,-713.13,0.00019178,2]
[382364034,1756587036329,-890.68,0.00019178,2]
[382364036,1756587036339,-529.28,0.00019178,2]
[382364037,1756587036351,-480.0,0.00019178,2]
[382364038,1756587036361,-1096.48,0.00019178,2]
[382364039,1756587036371,-495.3,0.00019178,2]
[382364040,1756587036381,-480.0,0.00019178,2]
[382364041,1756587036392,-480.0,0.00019178,2]
[382364042,1756587036402,-480.0,0.00019178,2]
[382364043,1756587036413,-480.0,0.00019178,2]
[382364044,1756587036427,-483.95814035,0.00019178,2]
[382364046,1756587036437,-1118.83,0.00019178,2]
[382364047,1756587036448,-480.0,0.00019178,2]
[382364048,1756587036458,-553.23,0.00019178,2]
[382364049,1756587036468,-480.0,0.00019178,2]
[382364050,1756587036477,-919.38,0.00019178,2]
[382364051,1756587036487,-480.0,0.00019178,2]
[382364052,1756587036496,-522.35,0.00019178,2]
[382364053,1756587036506,-5885.35,0.00019178,2]
[382364054,1756587036515,-480.0,0.00019178,2]
[382364056,1756587036524,-480.0,0.00019178,2]
[382364057,1756587036535,-798.55,0.00019178,2]
[382364058,1756587036544,-1300.48,0.00019178,2]
[382364059,1756587036554,-630.36,0.00019178,2]
[382364060,1756587036563,-3758.29,0.00019178,2]
[382364061,1756587036573,-480.0,0.00019178,2]
[382364062,1756587036583,-480.0,0.00019178,2]
[382364063,1756587036592,-584.78,0.00019178,2]
[382364064,1756587036601,-1528.41,0.00019178,2]
[382364066,1756587036611,-945.48,0.00019178,2]
[382364067,1756587036620,-480.0,0.00019178,2]
[382364068,1756587036630,-480.0,0.00019178,2]
[382364069,1756587036639,-480.0,0.00019178,2]
[382364070,1756587036648,-750.49,0.00019178,2]
[382364071,1756587036659,-526.85,0.00019178,2]
[382364072,1756587036668,-667.81,0.00019178,2]
[382364073,1756587036678,-734.6,0.00019178,2]
[382364074,1756587036688,-480.0,0.00019178,2]
[382364076,1756587036698,-6944.08,0.00019178,2]
[382364077,1756587036707,-480.0,0.00019178,2]
[382364078,1756587036716,-480.0,0.00019178,2]
[382364079,1756587036725,-4728.31,0.00019178,2]
[382364080,1756587036734,-1128.8,0.00019178,2]
[382364081,1756587036743,-480.0,0.00019178,2]
[382364082,1756587036752,-480.0,0.00019178,2]
[382364083,1756587036762,-480.0,0.00019178,2]
[382364084,1756587036771,-604.18,0.00019178,2]
[382364086,1756587036780,-720.56,0.00019178,2]
[382364087,1756587036790,-480.0,0.00019178,2]
[382364088,1756587036799,-480.0,0.00019178,2]
[382364089,1756587036808,-1271.35,0.00019178,2]
[382364090,1756587036818,-2911.69,0.00019178,2]
[382364091,1756587036827,-480.0,0.00019178,2]
[382364092,1756587036837,-1841.83,0.00019178,2]
[382364093,1756587036846,-480.0,0.00019178,2]
[382364094,1756587036856,-480.0,0.00019178,2]
[382364096,1756587036865,-1189.36,0.00019178,2]
[382364097,1756587036875,-1984.66,0.00019178,2]
[382364098,1756587036884,-854.43,0.00019178,2]
[382364099,1756587036893,-480.0,0.00019178,2]
[382364100,1756587036902,-1666.95,0.00019178,2]
[382364101,1756587036911,-480.0,0.00019178,2]
[382364102,1756587036922,-480.0,0.00019178,2]
[382364103,1756587036932,-480.0,0.00019178,2]
[382364104,1756587036941,-480.0,0.00019178,2]
[382364106,1756587036950,-919.22,0.00019178,2]
[382364107,1756587036959,-480.0,0.00019178,2]
[382364108,1756587036969,-899.17,0.00019178,2]
[382364109,1756587036978,-480.0,0.00019178,2]
[382364110,1756587036987,-480.0,0.00019178,2]
[382364111,1756587036996,-480.0,0.00019178,2]
[382364112,1756587037005,-672.62,0.00019178,2]
[382364113,1756587037015,-480.0,0.00019178,2]
[382364114,1756587037024,-480.0,0.00019178,2]
[382364116,1756587037037,-574.35,0.00019178,2]
[382364117,1756587037047,-480.0,0.00019178,2]
[382364118,1756587037056,-602.87,0.00019178,2]
[382364119,1756587037065,-568.8,0.00019178,2]
[382364120,1756587037075,-480.0,0.00019178,2]
[382364121,1756587037084,-897.28,0.00019178,2]
[382364122,1756587037093,-480.0,0.00019178,2]
[382364123,1756587037103,-528.11,0.00019178,2]
[382364124,1756587037112,-410.06432354,0.00019178,2]
[382364126,1756587037122,-621.35725847,0.00019178,2]
[382364127,1756587037131,-480.0,0.00019178,2]
[382364128,1756587037140,-480.0,0.00019178,2]
[382364129,1756587037150,-480.0,0.00019178,2]
[382364130,1756587037159,-2111.95,0.00019178,2]
[382364131,1756587037168,-480.0,0.00019178,2]
[382364132,1756587037178,-703.45,0.00019178,2]
[382364133,1756587037187,-343.87502654,0.00019178,2]
[382364134,1756587037197,-480.0,0.00019178,2]
[382364136,1756587037206,-1786.12,0.00019178,2]
[382364137,1756587037215,-986.28,0.00019178,2]
[382364138,1756587037225,-480.0,0.00019178,2]
[382364139,1756587037235,-620.44,0.00019178,2]
[382364140,1756587037245,-868.53,0.00019178,2]
[382364141,1756587037254,-1626.55,0.00019178,2]
[382364142,1756587037264,-480.0,0.00019178,2]
[382364143,1756587037274,-498.25,0.00019178,2]
[382364144,1756587037283,-544.41,0.00019178,2]
[382364146,1756587037293,-658.58,0.00019178,2]
[382364147,1756587037303,-1921.74,0.00019178,2]
[382364148,1756587037312,-480.0,0.00019178,2]
[382364149,1756587037323,-602.8,0.00019178,2]
[382364150,1756587037333,-480.0,0.00019178,2]
[382364151,1756587037343,-1013.06,0.00019178,2]
[382364152,1756587037353,-480.0,0.00019178,2]
[382364153,1756587037362,-1094.5,0.00019178,2]
[382364155,1756587037372,-162.58944037,0.00019178,2]
[382364156,1756587037383,-480.0,0.00019178,2]
[382364157,1756587037394,-1477.74,0.00019178,2]
[382364158,1756587037403,-915.0,0.00019178,2]
[382364159,1756587037413,-1922.73,0.00019178,2]
[382364160,1756587037423,-480.0,0.00019178,2]
[382364161,1756587037432,-480.0,0.00019178,2]
[382364162,1756587037442,-480.0,0.00019178,2]
[382364163,1756587037452,-480.0,0.00019178,2]
[382364165,1756587037462,-480.0,0.00019178,2]
[382364166,1756587037472,-480.0,0.00019178,2]
[382364167,1756587037482,-13737.41,0.00019178,2]
[382364168,1756587037493,-480.0,0.00019178,2]
[382364169,1756587037504,-1273.21,0.00019178,2]
[382364170,1756587037515,-480.0,0.00019178,2]
[382364171,1756587037525,-1537.76,0.00019178,2]
[382364172,1756587037536,-480.0,0.00019178,2]
[382364174,1756587037547,-480.0,0.00019178,2]
[382364175,1756587037556,-480.0,0.00019178,2]
[382364176,1756587037567,-480.0,0.00019178,2]
[382364177,1756587037579,-550.53,0.00019178,2]
[382364178,1756587037590,-585.74,0.00019178,2]
[382364179,1756587037602,-480.0,0.00019178,2]
[382364180,1756587037613,-1046.91,0.00019178,2]
[382364182,1756587037622,-2515.11,0.00019178,2]
[382364184,1756587037631,-480.0,0.00019178,2]
[382364186,1756587037641,-480.0,0.00019178,2]
[382364187,1756587037651,-576.79,0.00019178,2]
[382364188,1756587037661,-480.0,0.00019178,2]
[382364189,1756587037670,-2957.6,0.00019178,2]
[382364190,1756587037679,-480.0,0.00019178,2]
[382364191,1756587037689,-480.0,0.00019178,2]
[382364192,1756587037699,-480.0,0.00019178,2]
[382364193,1756587037709,-1277.53,0.00019178,2]
[382364194,1756587037718,-1570.88,0.00019178,2]
[382364196,1756587037729,-480.2,0.00019178,2]
[382364197,1756587037738,-480.0,0.00019178,2]
[382364199,1756587037747,-480.0,0.00019178,2]
[382364200,1756587037757,-480.0,0.00019178,2]
[382364202,1756587037767,-480.0,0.00019178,2]
[382364204,1756587037776,-480.0,0.00019178,2]
[382364205,1756587037785,-480.0,0.00019178,2]
[382364207,1756587037795,-837.93,0.00019178,2]
[382364209,1756587037805,-1466.01,0.00019178,2]
[382364212,1756587037815,-480.0,0.00019178,2]
[382364213,1756587037824,-829.07,0.00019178,2]
[382364215,1756587037834,-480.0,0.00019178,2]
[382364216,1756587037844,-1234.01,0.00019178,2]
[382364217,1756587037853,-962.54,0.00019178,2]
[382364218,1756587037862,-1770.62,0.00019178,2]
[382364219,1756587037873,-1026.54,0.00019178,2]
[382364221,1756587037882,-480.0,0.00019178,2]
[382364222,1756587037892,-2070.99,0.00019178,2]
[382364225,1756587037901,-1503.3,0.00019178,2]
[382364227,1756587037911,-480.0,0.00019178,2]
[382364229,1756587037920,-480.0,0.00019178,2]
[382364231,1756587037930,-480.0,0.00019178,2]
[382364233,1756587037939,-497.2,0.00019178,2]
[382364236,1756587037949,-480.0,0.00019178,2]
[382364238,1756587037959,-10609.09,0.00019178,2]
[382364240,1756587037968,-480.0,0.00019178,2]
[382364242,1756587037978,-1285.14,0.00019178,2]
[382364245,1756587037987,-480.0,0.00019178,2]
[382364247,1756587037996,-480.0,0.00019178,2]
[382364248,1756587038006,-480.0,0.00019178,2]
[382364249,1756587038015,-352.68535756,0.00019178,2]
[382364250,1756587038026,-480.0,0.00019178,2]
[382364251,1756587038041,-1495.18,0.00019178,2]
[382364252,1756587038051,-480.0,0.00019178,2]
[382364253,1756587038063,-480.0,0.00019178,2]
[382364255,1756587038072,-480.0,0.00019178,2]
[382364256,1756587038082,-481.0,0.00019178,2]
[382364257,1756587038091,-480.0,0.00019178,2]
[382364258,1756587038100,-177.55687785,0.00019178,2]
[382364259,1756587038113,-504.21,0.00019178,2]
[382364260,1756587038123,-1817.27,0.00019178,2]
[382364261,1756587038134,-1987.05,0.00019178,2]
[382364262,1756587038143,-480.0,0.00019178,2]
[382364263,1756587038153,-480.0,0.00019178,2]
[382364265,1756587038162,-480.0,0.00019178,2]
[382364266,1756587038171,-2006.8,0.00019178,2]
[382364268,1756587038181,-500.0,0.00019178,2]
[382364269,1756587038191,-1016.06,0.00019178,2]
[382364270,1756587038200,-546.96244475,0.00019178,2]
[382364272,1756587038209,-480.0,0.00019178,2]
[382364274,1756587038218,-480.0,0.00019178,2]
[382364276,1756587038228,-480.0,0.00019178,2]
[382364278,1756587038237,-1920.12,0.00019178,2]
[382364281,1756587038247,-480.0,0.00019178,2]
[382364282,1756587038257,-354.94049852,0.00019178,2]
[382364283,1756587038266,-480.0,0.00019178,2]
[382364284,1756587038276,-480.0,0.00019178,2]
[382364285,1756587038287,-7539.8,0.00019178,2]
[382364286,1756587038299,-480.0,0.00019178,2]
[382364287,1756587038310,-576.29,0.00019178,2]
[382364288,1756587038319,-1257.09,0.00019178,2]
[382364291,1756587038480,-480.0,0.00019178,2]
[382364292,1756587038492,-1165.52,0.00019178,2]
[382364294,1756587038502,-2238.62,0.00019178,2]
[382364295,1756587038512,-480.0,0.00019178,2]
[382364296,1756587038521,-480.0,0.00019178,2]
[382364297,1756587038530,-500.0,0.00019178,2]
[382364298,1756587038539,-172.37182722,0.00019178,2]
[382364299,1756587038549,-480.0,0.00019178,2]
[382364300,1756587038558,-480.0,0.00019178,2]
[382364301,1756587038567,-231.510682,0.00019178,2]
[382364302,1756587038576,-1440.51,0.00019178,2]
[382364304,1756587038585,-621.32,0.00019178,2]
[382364305,1756587038595,-480.0,0.00019178,2]
[382364306,1756587038605,-4058.47,0.00019178,2]
[382364307,1756587038614,-480.0,0.00019178,2]
[382364308,1756587038624,-480.0,0.00019178,2]
[382364309,1756587038634,-480.0,0.00019178,2]
[382364310,1756587038644,-480.0,0.00019178,2]
[382364311,1756587038653,-588.32739687,0.00019178,2]
[382364312,1756587038663,-480.0,0.00019178,2]
[382364314,1756587038672,-480.0,0.00019178,2]
[382364315,1756587038681,-480.0,0.00019178,2]
[382364316,1756587038691,-820.18,0.00019178,2]
[382364317,1756587038700,-480.0,0.00019178,2]
[382364318,1756587038710,-7769.72,0.00019178,2]
[382364319,1756587038719,-480.0,0.00019178,2]
[382364320,1756587038729,-1291.52,0.00019178,2]
[382364321,1756587038739,-480.0,0.00019178,2]
[382364322,1756587038748,-918.81,0.00019178,2]
[382364324,1756587038757,-480.0,0.00019178,2]
[382364325,1756587038767,-1008.06,0.00019178,2]
[382364326,1756587038775,-480.0,0.00019178,2]
[382364327,1756587038785,-193.67201749,0.00019178,2]
[382364328,1756587038794,-625.94,0.00019178,2]
[382364329,1756587038803,-480.0,0.00019178,2]
[382364330,1756587038812,-480.0,0.00019178,2]
[382364331,1756587038821,-480.0,0.00019178,2]
[382364332,1756587038830,-4458.81,0.00019178,2]
[382364333,1756587038840,-1217.92,0.00019178,2]
[382364335,1756587038849,-1858.79,0.00019178,2]
[382364336,1756587038858,-480.0,0.00019178,2]
[382364337,1756587038867,-667.18,0.00019178,2]
[382364338,1756587038876,-2350.77,0.00019178,2]
[382364339,1756587038885,-480.0,0.00019178,2]
[382364340,1756587038895,-3907.74,0.00019178,2]
[382364341,1756587038904,-558.67,0.00019178,2]
[382364342,1756587038914,-480.0,0.00019178,2]
[382364343,1756587038924,-2858.33,0.00019178,2]
[382364345,1756587038934,-1686.55,0.00019178,2]
[382364346,1756587038944,-890.66,0.00019178,2]
[382364347,1756587038953,-480.0,0.00019178,2]
[382364348,1756587038962,-480.0,0.00019178,2]
[382364349,1756587038972,-480.0,0.00019178,2]
[382364350,1756587038981,-2263.01,0.00019178,2]
[382364351,1756587039000,-480.0,0.00019178,2]
[382364352,1756587039010,-769.19,0.00019178,2]
[382364354,1756587039019,-480.0,0.00019178,2]
[382364355,1756587039039,-2703.86,0.00019178,2]
[382364356,1756587039048,-480.0,0.00019178,2]
[382364357,1756587039058,-5426.55,0.00019178,2]
[382364358,1756587039067,-480.0,0.00019178,2]
[382364359,1756587039077,-480.0,0.00019178,2]
[382364360,1756587039086,-480.0,0.00019178,2]
[382364361,1756587039096,-967.63,0.00019178,2]
[382364362,1756587039105,-1138.01,0.00019178,2]
[382364364,1756587039114,-480.0,0.00019178,2]
[382364365,1756587039125,-480.0,0.00019178,2]
[382364366,1756587039134,-834.12,0.00019178,2]
[382364367,1756587039144,-480.0,0.00019178,2]
[382364368,1756587039153,-2575.27,0.00019178,2]
[382364369,1756587039163,-480.0,0.00019178,2]
[382364370,1756587039172,-981.3,0.00019178,2]
[382364371,1756587039182,-833.44,0.00019178,2]
[382364372,1756587039192,-1970.91,0.00019178,2]
[382364374,1756587039201,-480.0,0.00019178,2]
[382364375,1756587039211,-546.36,0.00019178,2]
[382364376,1756587039220,-2358.56,0.00019178,2]
[382364377,1756587039230,-480.0,0.00019178,2]
[382364378,1756587039240,-502.81,0.00019178,2]
[382364379,1756587039249,-1583.22,0.00019178,2]
[382364380,1756587039259,-532.65,0.00019178,2]
[382364381,1756587039268,-644.43,0.00019178,2]
[382364382,1756587039278,-480.0,0.00019178,2]
[382364384,1756587039287,-480.0,0.00019178,2]
[382364385,1756587039297,-1431.44,0.00019178,2]
[382364386,1756587039307,-480.0,0.00019178,2]
[382364387,1756587039316,-480.0,0.00019178,2]
[382364388,1756587039326,-486.67,0.00019178,2]
[382364389,1756587039335,-1689.73,0.00019178,2]
[382364390,1756587039345,-1126.03,0.00019178,2]
[382364391,1756587039355,-480.0,0.00019178,2]
[382364392,1756587039364,-480.0,0.00019178,2]
[382364394,1756587039373,-480.0,0.00019178,2]
[382364395,1756587039383,-480.0,0.00019178,2]
[382364396,1756587039393,-349.52111818,0.00019178,2]
[382364397,1756587039403,-480.0,0.00019178,2]
[382364398,1756587039412,-480.0,0.00019178,2]
[382364399,1756587039422,-480.0,0.00019178,2]
[382364400,1756587039431,-480.0,0.00019178,2]
[382364401,1756587039441,-1110.6,0.00019178,2]
[382364402,1756587039451,-480.0,0.00019178,2]
[382364403,1756587039461,-480.0,0.00019178,2]
[382364405,1756587039471,-551.2,0.00019178,2]
[382364406,1756587039480,-299.73117619,0.00019178,2]
[382364407,1756587039490,-1046.67,0.00019178,2]
[382364408,1756587039499,-1492.67,0.00019178,2]
[382364409,1756587039509,-480.0,0.00019178,2]
[382364410,1756587039519,-480.0,0.00019178,2]
[382364411,1756587039529,-480.0,0.00019178,2]
[382364412,1756587039538,-480.0,0.00019178,2]
[382364413,1756587039548,-480.0,0.00019178,2]
[382364415,1756587039557,-494.38,0.00019178,2]
[382364416,1756587039566,-480.0,0.00019178,2]
[382364417,1756587039576,-480.0,0.00019178,2]
[382364418,1756587039585,-6583.15047949,0.00019178,2]
[382364453,1756587041754,-1366.34850926,0.00019178,2]
[382364454,1756587041777,-1820.22101125,0.00019178,2]
[382364456,1756587041787,-509.72315815,0.00019178,2]
[382364457,1756587041796,-4630.59,0.00019178,2]
[382364458,1756587041805,-480.0,0.00019178,2]
[382364459,1756587041815,-480.0,0.00019178,2]
[382364460,1756587041825,-727.15,0.00019178,2]
[382364461,1756587041834,-541.20292116,0.00019178,2]
[382364483,1756587042992,-121.75649087,0.00019066,2]
[382364484,1756587043007,-378.24350913,0.00019066,2]
[382364485,1756587043016,-500.0,0.00019066,2]
[382364487,1756587043027,-500.0,0.00019066,2]
[382364488,1756587043042,-500.0,0.00019066,2]
[382364489,1756587043051,-500.0,0.00019066,2]
[382364490,1756587043060,-575.85033513,0.00019066,2]
[382364491,1756587043070,-649.27789537,0.00019066,2]
[382364492,1756587043079,-492.5252563,0.00019066,2]
[382364493,1756587043088,-500.0,0.00019066,2]
[382364494,1756587043098,-500.0,0.00019066,2]
[382364495,1756587043107,-500.0,0.00019066,2]
[382364496,1756587043116,-500.0,0.00019066,2]
[382364498,1756587043125,-500.0,0.00019066,2]
[382364499,1756587043135,-582.62291,0.00019066,2]
[382364500,1756587043144,-500.0,0.00019066,2]
[382364501,1756587043154,-500.0,0.00019066,2]
[382364502,1756587043164,-500.0,0.00019066,2]
[382364504,1756587043173,-500.0,0.00019066,2]
[382364505,1756587043182,-500.0,0.00019066,2]
[382364506,1756587043191,-500.0,0.00019066,2]
[382364507,1756587043200,-500.0,0.00019066,2]
[382364508,1756587043211,-500.0,0.00019066,2]
[382364510,1756587043220,-500.0,0.00019066,2]
[382364511,1756587043230,-500.0,0.00019066,2]
[382364512,1756587043240,-500.0,0.00019066,2]
[382364513,1756587043249,-500.0,0.00019066,2]
[382364514,1756587043258,-500.0,0.00019066,2]
[382364515,1756587043268,-500.0,0.00019066,2]
[382364516,1756587043278,-500.0,0.00019066,2]
[382364517,1756587043287,-367.7604017,0.00019066,2]
[382364518,1756587043297,-500.0,0.00019066,2]
[382364520,1756587043307,-1471.80145598,0.00019078,2]
[382364521,1756587043316,-21.57707884,0.00019178,2]
[382364522,1756587043325,-616.61,0.00019178,2]
[382364523,1756587043334,-630.62,0.00019178,2]
[382364524,1756587043344,-480.0,0.00019178,2]
[382364525,1756587043353,-480.0,0.00019178,2]
[382364526,1756587043362,-480.0,0.00019178,2]
[382364527,1756587043372,-1807.86,0.00019178,2]
[382364528,1756587043382,-480.0,0.00019178,2]
[382364530,1756587043391,-480.0,0.00019178,2]
[382364531,1756587043400,-480.0,0.00019178,2]
[382364532,1756587043410,-480.0,0.00019178,2]
[382364533,1756587043420,-480.0,0.00019178,2]
[382364534,1756587043430,-480.0,0.00019178,2]